Cogmind - Beta 16 @@@ ROGUE MODE // 2025.11.07 @ 00:01:35 Player: taku_the_hopeless Result: Destroyed by S-10 Pest with Light Assault Rifle Performance ------------- Evolutions (0) 0 Regions Visited (1) 200 Robots Destroyed (4) 20 Value Destroyed (36) 36 Prototype IDs (0) 0 Alien Tech Used (0) 0 Bonus (0) 0 TOTAL SCORE: 256 Bonus ------- None Cogmind --------- Core Integrity 0/250 Matter 300/300 Energy 100/100 System Corruption 0% Temperature Cool (0) Movement Core (50) Location -10/Materials Parts ------- > --- POWER (1) -------- (None) > --- PROPULSION (2) --- (None) > --- UTILITY (2) ------ Signal Interpreter Terrain Scan Processor > --- WEAPON (2) ------- Hammer > --- INVENTORY (5) ---- Armored Wheel Armored Wheel Armored Wheel Armored Wheel Disposable Heat Sink Peak State ------------ > --- POWER ------------ (None) > --- PROPULSION ------- (None) > --- UTILITY ---------- Signal Interpreter Terrain Scan Processor > --- WEAPON ----------- Welding Torch > --- INVENTORY -------- Armored Wheel Armored Wheel Armored Wheel Armored Wheel Disposable Heat Sink [Rating: 5] Favorites ----------- Power None Propulsion None Utility Terrain Scan Processor Processor Terrain Scan Processor Weapon Hammer Special Weapon Welding Torch Impact Weapon Hammer Build | -11 -10 ------- Run | Yrd Mat Slots Evolved . | . . Power . | . . Propulsion . | . . Utility . | . . Weapon . | . . Parts Attached 4 | . 4 Power . | . . Engine . | . . Core . | . . Reactor . | . . Propulsion . | . . Treads . | . . Leg . | . . Wheel . | . . Hover . | . . Flight . | . . Utility 2 | . 2 Device . | . . Storage . | . . Processor 2 | . 2 Hackware . | . . Protection . | . . Artifact . | . . Weapon 2 | . 2 Energy Gun . | . . Energy Cannon . | . . Ballistic Gun . | . . Ballistic Cannon . | . . Launcher . | . . Special Weapon 1 | . 1 Impact Weapon 1 | . 1 Slashing Weapon . | . . Piercing Weapon . | . . Special Melee Weapon . | . . Unidentified Prototypes . | . . Parts Lost . | . . Power . | . . Propulsion . | . . Utility . | . . Weapon . | . . Highest Loss Streak . | . . To Critical Strikes . | . . Average Backups 4 | . 4 Power . | . . Propulsion 3 | . 3 Utility . | . . Weapon . | . . Tool/Special . | . . Unused Backups 5 | . 5 Power . | . . Propulsion 4 | . 4 Utility 1 | . 1 Weapon . | . . Tool/Special . | . . Average Slot Usage (%) 37 | . 37 Processor 24 | . 24 Special Weapon 6 | . 6 Impact Weapon 6 | . 6 Peak Build Rating 5 | . 5 Average Rating 4 | . 4 On Entrance . | . . Avg Prop Armor Cover (%) . | . . Naked Turns 10 | . 10 Heaviest Build 2 | . 2 Greatest Support 3 | 3 3 Greatest Overweight (x) . | . . Average Overweight (x) . | . . Largest Inventory Capacity 5 | 5 5 Average Capacity 5 | 5 5 Most Carried 5 | . 5 Average Carried 4 | . 4 Final Capacity 5 | 5 5 Final Carried 5 | . 5 Class Distribution -------------------- 100% | Mutant Dominant Class ---------------- Mutant | -10/Materials Resources | -11 -10 ----------- Run | Yrd Mat Matter Collected 240 | 200 40 Remotely . | . . Salvage Created 85 | . 85 Parts 6 | . 6 Haulers Intercepted . | . . Recyclers Shooed . | . . Parts Field Recycled . | . . Retrieved Matter . | . . Parts Self-Destructed . | . . Prevented . | . . Parts Restored . | . . Kills | -11 -10 ------- Run | Yrd Mat Combat Hostiles Destroyed 3 | . 3 Melee 2 | . 2 Classes Destroyed 2 | . 2 Recycler 1 | . 1 Swarmer 3 | . 3 Best Kill Streak 1 | . 1 Combat Bots Only 1 | . 1 Max Kills in Single Turn 1 | . 1 Gunslinging . | . . Exploded . | . . Melee 1 | . 1 Uniques/NPCs Destroyed . | . . Combat | -11 -10 -------- Run | Yrd Mat Hostile Shots Fired 46 | . 46 Missed 15 | . 15 Hits 31 | . 31 Projectile 31 | . 31 Damage Taken 286 | . 286 Core 251 | . 251 Absorbed by Shields . | . . Core Remaining (%) 100 | 100 . Volleys Fired 8 | . 8 Largest 1 | . 1 Hottest 20 | . 20 Shots Fired 8 | . 8 Gun . | . . Cannon . | . . Launcher . | . . Special 8 | . 8 Kinetic . | . . Thermal 8 | . 8 Explosive . | . . Electromagnetic . | . . Robot Hit Streak . | . . Robot Miss Streak 4 | . 4 Penetration Max . | . . Secondary Targets . | . . Shots Hit Robots 9 | . 9 Core Hits 2 | . 2 Critical Kills . | . . Critical Parts Destroyed . | . . Critical Strikes . | . . Melee Attacks 22 | . 22 Impact 22 | . 22 Slashing . | . . Piercing . | . . Sneak Attacks 1 | . 1 Combat Hostiles . | . . Follow-up Attacks . | . . Damage Inflicted 236 | . 236 Guns . | . . Cannons . | . . Explosions . | . . Melee 236 | . 236 Ramming . | . . Kinetic . | . . Thermal . | . . Explosive . | . . Electromagnetic . | . . Impact 236 | . 236 Slashing . | . . Piercing . | . . Highest Corruption . | . . Average Corruption . | . . Corruption Purged . | . . Corruption Blocked . | . . Overload Shots . | . . Overflow Damage 25 | . 25 Projectiles . | . . Explosions . | . . Melee 25 | . 25 Knockbacks 1 | . 1 Impact 1 | . 1 Kinetic . | . . Secondary . | . . Self-Inflicted Damage . | . . Shots . | . . Rammed . | . . Targets Rammed . | . . Kicked . | . . Crushed . | . . Highest Temperature . | . . Average Temperature . | . . Received Heat Transfer . | . . Siege Activations . | . . Martial Activations . | . . Shielding Activations . | . . Robots Disrupted . | . . Combat Hostiles . | . . Robots Corrupted 2 | . 2 Combat Hostiles 1 | . 1 Parts Fried 2 | . 2 Impact Corruptions 3 | . 3 Robots Melted . | . . Combat Hostiles . | . . Parts Melted . | . . Heat Transferred . | . . Parts Sabotaged . | . . Parts Stolen . | . . Parts Stripped . | . . Power Chain Reactions . | . . Alert | -11 -10 ------- Run | Yrd Mat Maximum Alert Level . | . . Low Security (%) 100 | 100 100 Level 1 . | . . Level 2 . | . . Level 3 . | . . Level 4 . | . . Level 5 . | . . High Security . | . . Max Security . | . . Peak Influence 55 | . 55 Initial . | . . Average 8 | . 9 Influence Increases 98 | . 98 Destroy 0b10 Robot/C 60 | . 60 Destroy 0b10 Robot/NC 5 | . 5 Destroy Leader 10 | . 10 Successful Hack 6 | . 6 Destroy Structure 2 | . 2 Lose Combat Pursuer 15 | . 15 Influence Decreases 47 | . 47 Time Decay 47 | . 47 Squads Dispatched . | . . Investigation . | . . Extermination . | . . Reinforcement . | . . Assault . | . . Garrison . | . . Intercept . | . . Searches Triggered . | . . Construction Impeded . | . . Haulers Reinforced . | . . Active Scanning Responses . | . . Cargo Convoy Interrupts . | . . Stealth | -11 -10 --------- Run | Yrd Mat Distress Signals 1 | . 1 Communications Jammed . | . . Distress Signals . | . . Times Spotted 11 | . 11 Peak Tracking Total 5 | . 5 Tactical Retreats 1 | . 1 Traps | -11 -10 ------- Run | Yrd Mat Traps Triggered 1 | . 1 Indirectly . | . . Trap Hack Attempts . | . . Triggered . | . . Disarmed . | . . Reprogrammed . | . . Reused . | . . Traps Extracted . | . . Installed . | . . Triggered . | . . Machines | -11 -10 ---------- Run | Yrd Mat Machines Disabled . | . . Max in Single Turn . | . . Machines Repaired . | . . Machines Dismantled . | . . Machines Sabotaged . | . . Overloaded Fab Kills . | . . Hacking | -11 -10 --------- Run | Yrd Mat Machines Accessed 4 | . 4 Terminals 4 | . 4 Fabricators . | . . Repair Stations . | . . Recycling Units . | . . Scanalyzers . | . . Garrison Access . | . . Total Hacks 11 | . 11 Successful 3 | . 3 Failed 8 | . 8 Catastrophic . | . . Database Lockouts . | . . Manual 6 | . 6 Terminals 11 | . 11 Fabricators . | . . Repair Stations . | . . Recycling Units . | . . Scanalyzers . | . . Garrison Access . | . . Terminal Hacks 1 | . 1 Locate Traps 1 | . 1 Fabricator Hacks . | . . Repair Station Hacks . | . . Recycling Unit Hacks . | . . Scanalyzer . | . . Garrison Access Hacks . | . . Unauthorized Hacks 2 | . 2 Terminals 2 | . 2 Botnet 1 | . 1 Disrupt 1 | . 1 Fabricators . | . . Repair Stations . | . . Recycling Units . | . . Scanalyzers . | . . Garrison Access . | . . Data Cores Recovered . | . . Used . | . . Hacking Detections 4 | . 4 Full Trace Events . | . . Feedback Events . | . . Feedback Blocked . | . . Robot Schematics Acquired . | . . Robots Built . | . . Authchips . | . . Time . | . . Total Robot Build Rating . | . . Part Schematics Acquired . | . . Parts Built . | . . Authchips . | . . Time . | . . Total Part Build Rating . | . . Part Studies Acquired . | . . Parts Repaired . | . . Time . | . . Parts Recycled . | . . Recycled Matter . | . . Retrieved Matter . | . . Retrieved Components . | . . Parts Scanalyzed . | . . Part Schematics Acquired . | . . Parts Damaged . | . . Bothacking | -11 -10 ------------ Run | Yrd Mat Used RIF Installer . | . . Robots Hacked . | . . Non-combat . | . . Combat . | . . Robot Hacks Applied . | . . Relay Couplers Released . | . . Fabnet Peak Effective % . | . . Robots Rewired . | . . Allies Hacked . | . . Hacks Repelled . | . . Allies | -11 -10 -------- Run | Yrd Mat Total Allies . | . . Largest Group . | . . Highest-Rated Group . | . . Highest-Rated Ally . | . . Total Orders . | . . Ally Attacks . | . . Total Damage . | . . Kills . | . . Allies Corrupted . | . . Allies Melted . | . . Intel | -11 -10 ------- Run | Yrd Mat Active Infowar (turns) . | . . Robot Analysis Total . | . . Derelict Logs Recovered . | . . Drone Launches . | . . Drone Recoveries . | . . Exploration | -11 -10 ------------- Run | Yrd Mat Turns Passed 404 | 38 366 Spaces Moved 529 | 75 454 Core 529 | 75 454 Treads . | . . Legs . | . . Wheels . | . . Hover . | . . Flight . | . . Fastest Speed 50 | 50 50 Average Speed 50 | 50 50 Slowest Speed 50 | 50 50 Overloaded Moves . | . . Propulsion Burnouts . | . . Robots Hopped . | . . Potential Cave-ins . | . . Cave-ins Triggered . | . . Exploration Rate (%) 30 | 3 58 Regions Visited 1 Branch Regions . Pre-discovered Areas . | . . Known Exits Taken . | . . Unknown Exits Taken 1 | 1 . Scrap Searched . | . . Spaces Dug 2 | . 2 Terrain Destroyed 2 | . 2 Melee 2 | . 2 Projectile . | . . AOE . | . . Terrain Rammed . | . . Walls Destroyed . | . . Machines Disabled . | . . Actions | -11 -10 --------- Run | Yrd Mat Total 618 | 74 544 Wait 50 | . 50 Move 528 | 74 454 Hop . | . . Pick Up 5 | . 5 Fast Attach 4 | . 4 Attach . | . . Detach . | . . Swap . | . . Drop 1 | . 1 Fire 8 | . 8 Melee 22 | . 22 Ram . | . . Kick . | . . Crush . | . . Escape Stasis . | . . Rewire . | . . Trap . | . . Miscellaneous . | . . Route ------- -11/Scrapyard -10/Materials (discovered 4 exits: *Mat x2 / *Min x2) History --------- Turn | Location | Event 7 | -11/Scrapyard | Discovered new exit (range 16) 39 | -11/Scrapyard | Entered Materials 96 | -10/Materials | Discovered new exit (range 12) 98 | -10/Materials | Discovered new exit (range 10) 111 | -10/Materials | Identified exit to Materials 125 | -10/Materials | Identified exit to Mines 199 | -10/Materials | Discovered exit to Mines (range 7) 314 | -10/Materials | Build established: Mutant 381 | -10/Materials | Discovered exit to Materials (range 13) 393 | -10/Materials | Core integrity fell below 50% 400 | -10/Materials | Core integrity fell below 20% 405 | -10/Materials | Destroyed by S-10 Pest with Light Assault Rifle Last Messages --------------- 00325_ Flight Unit fried. 00331_ K-01 Serf collects debris. 00345_ Destroyed Flight Unit. 00345_ S-10 Pest system corrupted by crushing effect. 00345_ K-01 Serf collects debris. 00347_ S-10 Pest misfires. 00350_ K-01 Serf collects debris. 00354_ S-10 Pest destroyed. 00356_ R-06 Scavenger collects Corrupted Lgt. Assault Rifle. 00369_ K-01 Serf cleans the Matter Filter. 00370_ K-01 Serf collects debris. 00374_ K-01 Serf cleans the Matter Filter. 00378_ S-10 Pest knocked back. 00381_ EXIT=FOUND: MATERIALS 00398_ Connecting with Terminal... >>Trojan(Disrupt) Trojan loaded successfully. Testing... Disruption routine running. 00403_ S-10 Pest destroyed. Map ----- +----------------------------------------------------+ | | | | | | | | | | | | | | | ?????????????????????????????????????????????????? | | ?????????????????????????????????????????????????? | | ?????????????????????????????????????????????????? | | ?????????????????????????????????????????????????? | | ?????????????????????????????????????????????????? | | ?????????????????????????????????????????????????? | | ???????????????????####??????????????????????????? | | ?##???????????###### ??????????????????????????? | | ? ?????????? < ??????????????????????????? | | ?????????? ??????????????????????????? | | # #???????? ###+####??????????????????? | | # #????????? #??????????????????? | | # +????????? #??????????????????? | | # #????????? ^ #??????????????????? | | # #??????? ?? #??????????????????? | | # #???????# #??????????????????? | | # #???????# """ """ ="" #??????????????????? | | # #???????# """ """ =%T" #??????????????????? | | # #???????# """ """ @"" #??????????????????? | | # #???????# s + ????????????? | | # ######### ws # ?????????????? | | # #### #??? ???????????? | | + #??? #??????????????????? | | # #??? #??????????????????? | | # ###+############ #???? #??????????????????? | | # # #???????# #???? ??????????????????? | | # # % ! ######### #???? ?????????????????? | | # # ! + #????? ????????????????? | | # # ! ##########+###????#####???????????????? | | # #########% #????????????????????????? | | # ## # """"""" #????????????????????????? | | # ## ! #? """"""" #????????????????????????? | | # ## #??""""""" #????????????????????????? | | # ## #??""""""" #????????????????????????? | | # ## # """"""" #????????????????????????? | | # # #????????????????????????? | | # ######+###+##????????????????????????? | | T + ##### #?????????????????????????? | | # + #?????????????????????????? | | # ##### #??######??????##?????????? | | # ## #???# #??# #########??????#??? | | # ## #???# #??# # ! ## ???# ?? | | # ## #???# #### + ## # # | +----------------------------------------------------+ Best States ------------- Heat Dissipation 25 Energy Generation 5 Energy Capacity 100 Matter Stores 300 Matter Capacity 300 Sight Range 16 Terrain Scan Density 85 Evasion (%) 50 Item Schematics ----------------- None Robot Schematics ------------------ None Fabricated ------------ Nothing Repaired ---------- Nothing Studied --------- None Alien Tech Used ----------------- None Achievements -------------- None Challenges ------------ None Game ------ Seed SubatomicMassTendrils Manual? 0 Play Time 00:07:00 Cumulative 274.5 hours Start 2025.11.06 @ 23:57:55 End 2025.11.07 @ 00:01:35 Sessions 1 Manual Loads 0 Difficulty Rogue Special Mode None Game No. 309 Rogue 309 Adventurer 0 Explorer 0 Win Type - Total 4 Types 4/0/0/0/0/0/0/0/0/0 Lore% 76 Gallery% 71 Achievement% 53 Wizard Run 0 Options --------- Layout 0 ASCII 0 Keyboard 0 Movement Vi Keybinds 0 Fullscreen 2 Font 18/VGA_Max Map View 76x50 Zoom Use 0% Tactical HUD 1 Map Filters NONE Filters NONE Steam 1 RUN: cdd2c548-e91f-4072-ba69-c90952f123f7